bitfinex/quotes_BTCUSD_20240730
["timestamp","ask_amount","ask_price","bid_price","bid_amount"]
[1722382995012,0.06128592,66343.0,66342.0,1.00012]
[1722382995207,0.06848014,66343.0,66342.0,1.00012]
[1722382995976,0.06948014,66343.0,66342.0,1.00712]
[1722382996519,0.06848014,66343.0,66342.0,1.00012]
[1722382996800,0.06948014,66343.0,66342.0,1.00812]
[1722382997360,0.06848014,66343.0,66342.0,1.00012]
[1722382997565,0.06948014,66343.0,66342.0,1.00912]
[1722382998054,0.0696491,66343.0,66342.0,1.00912]
[1722382998258,0.12847487,66343.0,66342.0,1.00912]
[1722382998548,0.0696491,66343.0,66342.0,1.00912]
[1722382998843,0.0696491,66343.0,66342.0,1.00112]
[1722382999075,0.0696491,66343.0,66342.0,1.01112]
[1722382999766,0.0696491,66343.0,66342.0,1.02212]
[1722383000366,0.0696491,66343.0,66342.0,1.323588]
[1722383000772,0.06245488,66343.0,66342.0,1.323588]
[1722383002016,0.06275667,66343.0,66342.0,1.323588]
[1722383002837,0.17573603,66343.0,66342.0,1.323588]
[1722383003044,0.09401032,66343.0,66342.0,1.323588]
[1722383003191,0.16037021,66343.0,66342.0,1.323588]
[1722383003398,0.07141178,66343.0,66342.0,1.323588]
[1722383003601,0.00362911,66343.0,66342.0,1.323588]
[1722383003780,0.04881237,66343.0,66342.0,1.323588]
[1722383004490,0.04881237,66343.0,66342.0,1.302588]
[1722383005795,0.04781237,66343.0,66342.0,1.307588]
[1722383005995,0.04781237,66343.0,66342.0,1.293588]
[1722383006235,0.00362911,66343.0,66342.0,1.307588]
[1722383006436,0.00362911,66343.0,66342.0,1.321588]
[1722383006644,0.00262911,66343.0,66342.0,1.307588]
[1722383006844,0.00262911,66343.0,66342.0,1.321588]
[1722383014601,0.04781626,66343.0,66342.0,1.321588]
[1722383014840,0.00262911,66343.0,66342.0,1.321588]
[1722383015691,0.04781423,66343.0,66342.0,1.321588]
[1722383016650,0.04782202,66343.0,66342.0,1.321588]
[1722383017826,0.04782677,66343.0,66342.0,1.321588]
[1722383018663,0.07042561,66343.0,66342.0,1.321588]
[1722383018833,0.07762629,66343.0,66342.0,1.321588]
[1722383019032,0.00262911,66343.0,66342.0,1.321588]
[1722383019703,0.09302444,66343.0,66342.0,1.321588]
[1722383021158,0.09304214,66343.0,66342.0,1.321588]
[1722383024592,0.09304691,66343.0,66342.0,1.321588]
[1722383027683,0.09305515,66343.0,66342.0,1.321588]
[1722383028231,0.00262911,66343.0,66342.0,1.321588]
[1722383028411,0.09305748,66343.0,66342.0,1.321588]
[1722383029279,0.07045345,66343.0,66342.0,1.623056]
[1722383029679,0.00262911,66343.0,66342.0,1.623056]
[1722383029885,0.07045391,66343.0,66342.0,1.623056]
[1722383030960,0.07045701,66343.0,66342.0,1.623056]
[1722383031577,0.00262911,66343.0,66342.0,1.623056]
[1722383031807,0.0704601,66343.0,66342.0,1.623056]
[1722383032034,0.07045979,66343.0,66342.0,1.623056]
[1722383032198,0.07045977,66343.0,66342.0,1.623056]
[1722383034257,0.00262911,66343.0,66342.0,1.623056]
[1722383034378,0.07046694,66343.0,66342.0,1.623056]
[1722383034801,0.09306632,66343.0,66342.0,1.623056]
[1722383034995,0.00262911,66343.0,66342.0,1.623056]
[1722383036257,0.09306632,66343.0,66342.0,1.623056]
[1722383037105,0.00262911,66343.0,66342.0,1.623056]
[1722383037602,0.09309366,66343.0,66342.0,1.623056]
[1722383039070,0.00262911,66343.0,66342.0,1.623056]
[1722383039555,0.09309366,66343.0,66342.0,1.623056]
[1722383040007,0.00262911,66343.0,66342.0,1.633056]
[1722383040188,0.04786778,66343.0,66342.0,1.733056]
[1722383040589,0.04786778,66343.0,66342.0,1.723056]
[1722383040769,0.04787054,66343.0,66342.0,1.723056]
[1722383040969,0.04787054,66343.0,66342.0,1.733056]
[1722383041194,0.00262911,66343.0,66342.0,1.719056]
[1722383041402,0.04787054,66343.0,66342.0,1.719056]
[1722383041711,0.00262911,66343.0,66342.0,1.739056]
[1722383041912,0.04787388,66343.0,66342.0,1.739056]
[1722383042197,0.04787368,66343.0,66342.0,1.739056]
[1722383042416,0.00262911,66343.0,66342.0,1.739056]
[1722383042999,0.00362911,66343.0,66342.0,1.753056]
[1722383043199,0.04887698,66343.0,66342.0,1.753056]
[1722383043408,0.00362911,66343.0,66342.0,1.8783492]
[1722383046375,0.00362911,66343.0,66342.0,1.753056]
[1722383046581,0.00362911,66343.0,66342.0,1.87834638]
[1722383047214,0.00362911,66343.0,66342.0,1.87834665]
[1722383048744,0.00362911,66343.0,66342.0,1.753056]
[1722383051744,0.00362911,66343.0,66342.0,2.20515704]
[1722383051942,0.00362911,66343.0,66342.0,2.22815704]
[1722383052152,0.00362911,66343.0,66342.0,2.4399422]
[1722383052713,0.00362911,66343.0,66342.0,2.3534422]
[1722383052913,0.00362911,66343.0,66342.0,2.4399422]
[1722383053252,0.00262911,66343.0,66342.0,2.4119422]
[1722383053468,0.00262911,66343.0,66342.0,2.4399422]
[1722383053469,0.00362911,66343.0,66342.0,2.4399422]
[1722383053834,0.00262911,66343.0,66342.0,2.4259422]
[1722383054297,0.00362911,66343.0,66342.0,2.4399422]
[1722383055333,0.00362911,66343.0,66342.0,2.43994369]
[1722383056488,0.00362911,66343.0,66342.0,2.31465704]
[1722383056734,0.00362911,66343.0,66342.0,2.56523196]
[1722383057143,0.00362911,66343.0,66342.0,2.47873196]
[1722383057345,0.00362911,66343.0,66342.0,2.43994463]
[1722383058025,0.00362911,66343.0,66342.0,2.41994463]
[1722383058896,0.00362911,66343.0,66342.0,2.43994463]
[1722383061867,0.00362911,66343.0,66342.0,2.56523499]
[1722383062347,0.00362911,66343.0,66342.0,2.43994463]
[1722383062584,0.00362911,66343.0,66342.0,2.56523446]
[1722383063002,0.00362911,66343.0,66342.0,2.43994463]
[1722383063205,0.00362911,66343.0,66342.0,2.56523299]
[1722383063638,0.00362911,66343.0,66342.0,2.43994463]
[1722383063819,0.00362911,66343.0,66342.0,2.565233]
[1722383065210,0.00362911,66343.0,66342.0,2.43994463]
[1722383065390,0.00362911,66343.0,66342.0,2.56522764]
[1722383065992,0.04522006,66351.0,66350.0,0.03]
[1722383066203,0.04522006,66353.0,66352.0,0.1694]
[1722383066406,0.1356602,66365.0,66352.0,0.1694]
[1722383066407,0.04521562,66356.0,66355.0,0.0636]
[1722383066613,0.11303906,66362.0,66356.0,0.150702]
[1722383066614,0.04521562,66357.0,66356.0,0.150702]
[1722383066816,0.04521562,66357.0,66356.0,0.84001]
[1722383067014,0.04521562,66357.0,66356.0,1.518518]
[1722383067195,0.04521562,66358.0,66357.0,1.1181]
[1722383067388,0.04521562,66358.0,66357.0,1.4195]
[1722383067846,0.04521562,66359.0,66358.0,1.356277]
[1722383068084,0.04521562,66360.0,66359.0,0.452085]
[1722383068252,0.04521562,66360.0,66359.0,0.753475]
[1722383068462,0.04521562,66361.0,66360.0,0.753465]
[1722383068617,0.04521562,66361.0,66360.0,0.839965]
[1722383068814,0.06782343,66362.0,66361.0,0.753452]
[1722383069021,0.09043125,66363.0,66362.0,0.452065]
[1722383069254,0.09043125,66363.0,66362.0,1.141319]
[1722383069619,0.19263906,66365.0,66364.0,1.054788]
[1722383069620,0.19259264,66365.0,66364.0,1.054788]
[1722383070469,0.0796,66365.0,66364.0,1.054788]
[1722383070710,0.0796,66365.0,66364.0,1.068788]
[1722383070917,0.11299264,66366.0,66365.0,1.05477]
[1722383071118,0.12268083,66366.0,66365.0,1.14127]
[1722383072961,0.12265908,66366.0,66365.0,1.14127]
[1722383073127,0.12265908,66366.0,66365.0,1.15327]
[1722383073530,0.12265563,66366.0,66365.0,1.16727]
[1722383075133,0.12264739,66366.0,66365.0,1.16727]
[1722383076070,0.00968819,66366.0,66365.0,1.16727]
[1722383080349,0.00968819,66366.0,66365.0,1.08077]
[1722383081464,0.0806,66367.0,66365.0,1.08077]
[1722383081465,0.0806,66367.0,66366.0,0.753397]
[1722383083422,0.0806,66367.0,66366.0,0.765397]
[1722383083627,0.09029071,66367.0,66366.0,0.779397]
[1722383083821,0.0806,66367.0,66366.0,0.779397]
[1722383084044,0.09029071,66367.0,66366.0,0.779397]
[1722383088072,0.14806884,66367.0,66366.0,0.779397]
[1722383088468,0.14806884,66367.0,66366.0,1.080756]
[1722383088671,0.14806884,66367.0,66366.0,1.08995558]
[1722383089488,0.09029071,66367.0,66366.0,1.08995558]
[1722383089691,0.14809571,66367.0,66366.0,1.08995558]
[1722383090137,0.06749571,66367.0,66366.0,1.08995558]
[1722383092602,0.00969071,66367.0,66366.0,1.08995558]
[1722383093010,0.0578523,66367.0,66366.0,1.08995558]
[1722383093370,0.06617305,66367.0,66366.0,1.08995558]
[1722383095242,0.20180535,66367.0,66366.0,1.08995558]
[1722383096021,0.06604821,66367.0,66366.0,1.08995558]
[1722383096195,0.20169158,66367.0,66366.0,1.08995558]
[1722383099197,0.00831909,66367.0,66366.0,1.08995558]
[1722383099400,0.14398467,66367.0,66366.0,1.08995558]
[1722383099607,0.19337216,66367.0,66366.0,1.08995558]
[1722383099816,0.20169092,66367.0,66366.0,1.08995558]
[1722383100534,0.20369092,66367.0,66366.0,1.08995558]
[1722383101522,0.20168951,66367.0,66366.0,1.08995558]
[1722383102296,0.20168951,66367.0,66366.0,1.15325558]
[1722383103087,0.06601538,66367.0,66366.0,1.15325558]
[1722383104154,0.14191538,66367.0,66366.0,0.779397]
[1722383104849,0.14108936,66367.0,66366.0,0.779397]
[1722383105389,0.14108945,66367.0,66366.0,0.779397]
[1722383107169,0.14075196,66367.0,66366.0,0.779397]
[1722383107427,0.08421876,66367.0,66366.0,0.779397]
[1722383107589,0.14075196,66367.0,66366.0,0.779397]
[1722383108219,0.14085757,66367.0,66366.0,0.779397]
[1722383108876,0.06495757,66367.0,66366.0,1.227356]
[1722383109194,0.05663881,66367.0,66366.0,1.227356]
[1722383109385,0.15277141,66369.0,66366.0,0.1726]
[1722383109589,0.05655821,66368.0,66367.0,0.452031]
[1722383109953,0.05655821,66368.0,66367.0,0.753385]
[1722383110783,0.05655821,66368.0,66367.0,0.767385]
[1722383111139,0.20932962,66368.0,66367.0,0.767385]
[1722383111351,0.08,66371.0,66370.0,0.45201]
[1722383111562,0.13751068,66371.0,66370.0,0.45201]
[1722383112128,0.13751068,66371.0,66370.0,0.75335]
[1722383112904,0.13751068,66371.0,66370.0,0.76435]
[1722383113434,0.13751068,66371.0,66370.0,1.21279]
[1722383113946,0.13735457,66371.0,66370.0,1.22079]
[1722383114210,0.13735457,66371.0,66370.0,1.20979]
[1722383114378,0.13735457,66371.0,66370.0,1.20179]
[1722383114581,0.08,66371.0,66370.0,1.21279]
[1722383114838,0.21582299,66371.0,66370.0,1.21279]
[1722383115237,0.22740572,66371.0,66370.0,1.21279]
[1722383115456,0.22740572,66371.0,66370.0,1.22679]
[1722383115659,0.22740572,66371.0,66370.0,1.21279]
[1722383116060,0.14859968,66371.0,66370.0,1.13409]
[1722383116464,0.14859968,66371.0,66370.0,1.14809]
[1722383116671,0.24049968,66371.0,66370.0,0.028]
[1722383116870,0.38175196,66371.0,66370.0,0.17867]
[1722383117105,0.24051783,66371.0,66370.0,0.17867]
[1722383117450,0.24051783,66371.0,66370.0,0.028]
[1722383117648,0.24051783,66371.0,66370.0,0.014]
[1722383117851,0.24003598,66371.0,66370.0,0.17267]
[1722383118171,0.24003599,66371.0,66370.0,0.17267]
[1722383118589,0.24003599,66371.0,66370.0,0.15867]
[1722383118997,0.24003599,66371.0,66370.0,0.16967]
[1722383119424,0.23803599,66371.0,66370.0,0.16967]
[1722383119991,0.24003599,66371.0,66370.0,0.16967]
[1722383120390,0.23803599,66371.0,66370.0,0.019]
[1722383120590,0.24003599,66371.0,66370.0,0.019]
[1722383121169,0.24010055,66371.0,66370.0,0.019]
[1722383121577,0.18350088,66371.0,66370.0,0.019]
[1722383121776,0.24013367,66371.0,66370.0,0.019]
[1722383123392,0.18350088,66371.0,66370.0,0.019]
[1722383123565,0.24009915,66371.0,66370.0,0.019]
[1722383124346,0.69216343,66371.0,66370.0,0.019]
[1722383126309,0.69216343,66371.0,66364.0,0.0658]
[1722383126310,0.002,66366.0,66365.0,0.150681]
[1722383126512,0.002,66366.0,66364.0,0.214353]
[1722383126513,0.002,66365.0,66364.0,0.214353]
[1722383126859,0.05865855,66365.0,66364.0,0.214353]
[1722383127080,0.07027192,66365.0,66364.0,0.214353]
[1722383127293,0.07027192,66365.0,66364.0,0.214354]
[1722383127731,0.01361337,66365.0,66364.0,0.214354]
[1722383128132,0.07038799,66365.0,66364.0,0.214354]
[1722383128417,0.20618335,66365.0,66364.0,0.214354]
[1722383128833,0.07038799,66365.0,66364.0,0.214354]
[1722383129261,0.06838799,66365.0,66364.0,0.214354]
[1722383129481,0.2041785,66365.0,66364.0,0.214354]
[1722383129694,0.2041785,66365.0,66364.0,0.594022]
[1722383129901,0.06938799,66365.0,66364.0,1.209758]
[1722383130127,0.05777462,66365.0,66364.0,1.209758]
[1722383130331,0.05777462,66365.0,66364.0,1.216758]
[1722383130332,0.05877462,66365.0,66364.0,1.216758]
[1722383130996,0.05892458,66365.0,66364.0,1.216758]
[1722383131409,0.05892458,66365.0,66364.0,0.91539]
[1722383132261,0.06092458,66365.0,66364.0,0.91539]
[1722383132686,0.07222483,66365.0,66364.0,0.91539]
[1722383132912,0.20800616,66365.0,66364.0,0.02]
[1722383133203,0.07222483,66365.0,66364.0,0.170684]
[1722383133376,0.22290583,66365.0,66364.0,0.02]
[1722383133588,0.07222483,66365.0,66364.0,0.02]
[1722383134240,0.01530025,66365.0,66364.0,0.02]
[1722383134498,0.3132308,66365.0,66364.0,0.02]
[1722383134713,0.55814425,66365.0,66364.0,0.02]
[1722383134936,0.31323106,66365.0,66364.0,0.02]
[1722383135349,0.07175006,66365.0,66364.0,0.02]
[1722383135552,0.07175006,66365.0,66364.0,0.0804]
[1722383136283,0.22448603,66365.0,66364.0,0.0804]
[1722383137491,0.22444442,66365.0,66364.0,0.0804]
[1722383138132,0.22244442,66365.0,66364.0,0.0804]
[1722383138349,0.22444442,66365.0,66364.0,0.0804]
[1722383138566,0.07175006,66365.0,66364.0,0.0804]
[1722383139216,0.06975006,66365.0,66364.0,0.0804]
[1722383139424,0.07175006,66365.0,66364.0,0.0804]
[1722383140274,0.07175006,66365.0,66364.0,0.02]
[1722383140476,0.22444442,66365.0,66364.0,0.02]
[1722383140672,0.01530025,66365.0,66364.0,0.02]
[1722383140890,0.07193261,66365.0,66364.0,0.02]
[1722383143552,0.22461408,66365.0,66364.0,0.02]
[1722383143796,0.07193261,66365.0,66364.0,0.02]
[1722383144221,0.07193529,66365.0,66364.0,0.02]
[1722383145261,0.15003529,66365.0,66364.0,0.02]
[1722383145437,0.15003529,66365.0,66364.0,0.020913]
[1722383145640,0.30071629,66365.0,66364.0,0.020913]
[1722383146653,1.03128487,66365.0,66364.0,0.020913]
[1722383147024,1.42279572,66365.0,66364.0,0.020913]
[1722383147486,1.42199759,66365.0,66364.0,0.020913]
[1722383147723,1.41999759,66365.0,66364.0,0.000913]
[1722383147950,1.27501283,66365.0,66364.0,0.014913]
[1722383148124,1.42128277,66365.0,66364.0,0.011913]
[1722383148558,1.42128277,66365.0,66364.0,0.000913]
[1722383148702,1.42528277,66365.0,66364.0,0.000913]
[1722383149786,1.4248001,66365.0,66364.0,0.000913]
[1722383150547,1.42484137,66365.0,66364.0,0.000913]
[1722383153629,1.43375058,66365.0,66364.0,0.000913]
[1722383153837,1.4337874,66365.0,66364.0,0.000913]
[1722383157042,1.43356763,66365.0,66364.0,0.000913]
[1722383158071,1.45721745,66365.0,66364.0,0.000913]
[1722383159197,1.45521745,66365.0,66364.0,0.000913]
[1722383160490,1.4555365,66365.0,66364.0,0.000913]
[1722383160840,1.4575365,66365.0,66364.0,0.000913]
[1722383161041,1.4574198,66365.0,66364.0,0.000913]
[1722383162521,1.7587828,66365.0,66364.0,0.000913]
[1722383162741,1.61293486,66365.0,66364.0,0.000913]
[1722383162943,1.7581962,66365.0,66364.0,0.000913]
[1722383163353,2.16590938,66365.0,66364.0,0.000913]
[1722383164496,2.16090938,66365.0,66364.0,0.000913]
[1722383164775,2.17290938,66365.0,66364.0,0.002913]
[1722383165152,2.15290938,66365.0,66364.0,0.002913]
[1722383165427,1.93804638,66365.0,66364.0,0.002913]
[1722383165626,2.16008843,66365.0,66364.0,0.002913]
[1722383165835,1.93475513,66365.0,66364.0,0.002913]
[1722383166039,1.79921308,66365.0,66364.0,0.002913]
[1722383166245,1.79721308,66365.0,66364.0,0.002913]
[1722383166665,1.41135008,66365.0,66364.0,0.002913]
[1722383166874,1.49785008,66365.0,66364.0,0.002913]
[1722383167075,1.6485444,66365.0,66364.0,0.002913]
[1722383167698,1.64994273,66365.0,66364.0,0.002913]
[1722383168544,1.95130573,66365.0,66364.0,0.002913]
[1722383169166,1.95075592,66365.0,66364.0,0.002913]
[1722383173062,1.95090485,66365.0,66364.0,0.002913]
[1722383174071,1.86440485,66365.0,66364.0,0.002913]
[1722383174276,1.95090485,66365.0,66364.0,0.002913]
[1722383175696,1.95130892,66365.0,66364.0,0.002913]
[1722383177198,2.17330037,66365.0,66364.0,0.002913]
[1722383177436,1.95130892,66365.0,66364.0,0.002913]
[1722383178885,1.64758711,66365.0,66364.0,0.002913]
[1722383179107,1.64758711,66365.0,66364.0,0.068913]
[1722383179108,1.42079279,66365.0,66364.0,0.068913]
[1722383179571,1.42079279,66365.0,66364.0,0.149213]
[1722383180313,1.42079279,66365.0,66364.0,0.068913]
[1722383181542,1.57148711,66365.0,66364.0,0.068913]
[1722383182046,1.42617378,66365.0,66364.0,0.068913]
[1722383182368,1.57097698,66365.0,66364.0,0.068913]
[1722383182569,1.42617378,66365.0,66364.0,0.068913]
[1722383182723,1.57149578,66365.0,66364.0,0.068913]
[1722383184365,1.57123166,66365.0,66364.0,0.068913]
[1722383185376,1.42617378,66365.0,66364.0,0.068913]
[1722383185563,1.57066289,66365.0,66364.0,0.068913]
[1722383188649,1.64835597,66365.0,66364.0,0.068913]
[1722383188853,1.79289454,66365.0,66364.0,0.068913]
[1722383190608,1.57057429,66365.0,66364.0,0.068913]
[1722383192008,1.42617378,66365.0,66364.0,0.068913]
[1722383192211,1.57047397,66365.0,66364.0,0.068913]
[1722383192663,1.57001887,66365.0,66364.0,0.068913]
[1722383194307,1.57006242,66365.0,66364.0,0.068913]
[1722383195259,1.57002834,66365.0,66364.0,0.068913]
[1722383198009,1.56982751,66365.0,66364.0,0.068913]
[1722383201842,1.56951739,66365.0,66364.0,0.068913]
[1722383204113,1.56959525,66365.0,66364.0,0.068913]
[1722383206539,1.14479354,66365.0,66364.0,0.144413]
[1722383206741,0.84343054,66365.0,66364.0,0.144413]
[1722383206942,0.92212872,66365.0,66364.0,0.144413]
[1722383207267,0.92012872,66365.0,66364.0,0.143413]
[1722383207380,0.92412872,66365.0,66364.0,0.143413]
[1722383207596,0.17072172,66365.0,66364.0,0.143413]
[1722383208005,0.07783817,66365.0,66364.0,0.143413]
[1722383208412,0.06789424,66365.0,66364.0,0.142413]
[1722383208620,0.22129688,66365.0,66364.0,0.142413]
[1722383208853,0.22229688,66365.0,66364.0,0.142413]
[1722383209227,0.22129688,66365.0,66364.0,0.142413]
[1722383209444,0.22429688,66365.0,66364.0,0.146413]
[1722383210099,0.22129688,66365.0,66364.0,0.146413]
[1722383210270,0.22129688,66365.0,66364.0,0.147413]
[1722383211614,0.16670289,66365.0,66364.0,0.147413]
[1722383211826,0.22107589,66365.0,66364.0,0.147413]
[1722383213730,0.2210362,66365.0,66364.0,0.147413]
[1722383214718,0.5223992,66365.0,66364.0,0.147413]
[1722383215084,0.46806589,66365.0,66364.0,0.147413]
[1722383215300,0.52662956,66365.0,66364.0,0.147413]
[1722383215746,0.91952452,66365.0,66364.0,0.147413]
[1722383215957,0.61816152,66365.0,66364.0,0.147413]
[1722383218649,0.61807838,66365.0,66364.0,0.147413]
[1722383219266,0.22518342,66365.0,66364.0,0.147413]
[1722383219475,0.07450242,66365.0,66364.0,0.147413]
[1722383219699,0.07450242,66365.0,66364.0,0.298097]
[1722383219915,0.07250242,66365.0,66364.0,0.298097]
[1722383220126,0.07250242,66365.0,66364.0,0.147413]
[1722383220338,0.07450242,66365.0,66364.0,0.147413]
[1722383220923,0.22706095,66365.0,66364.0,0.147413]
[1722383221158,0.07450242,66365.0,66364.0,0.147413]
[1722383221895,0.07429483,66365.0,66364.0,0.147413]
[1722383222393,0.02022085,66365.0,66364.0,0.147413]
[1722383222590,0.07429474,66365.0,66364.0,0.147413]
[1722383223144,0.22497574,66365.0,66364.0,0.147413]
[1722383223353,0.60918881,66365.0,66364.0,0.071913]
[1722383223573,0.91055181,66365.0,66364.0,0.071913]
[1722383224097,0.91056791,66365.0,66364.0,0.071913]
[1722383224498,0.91056791,66365.0,66364.0,0.070913]
[1722383224956,0.91356791,66365.0,66364.0,0.070913]
[1722383225157,0.91356791,66365.0,66364.0,0.066913]
[1722383225366,0.91346874,66365.0,66364.0,0.066913]
[1722383225935,0.91446874,66365.0,66364.0,0.066913]
[1722383227974,0.91448074,66365.0,66364.0,0.066913]
[1722383228193,0.91448074,66365.0,66364.0,0.147613]
[1722383228619,0.53026767,66365.0,66364.0,0.147613]
[1722383228856,0.53038044,66365.0,66364.0,0.147613]
[1722383229500,0.52938044,66365.0,66364.0,0.147613]
[1722383229948,0.52938044,66365.0,66364.0,0.150613]
[1722383230176,0.52638044,66365.0,66364.0,0.150613]
[1722383230824,0.50815959,66365.0,66364.0,0.150613]
[1722383231029,0.52443868,66365.0,66364.0,0.150613]
[1722383232270,0.47032309,66365.0,66364.0,0.150613]
[1722383232467,0.5243168,66365.0,66364.0,0.150613]
[1722383232918,0.47032309,66365.0,66364.0,0.150613]
[1722383233159,0.5243229,66365.0,66364.0,0.150613]
[1722383234547,0.52407679,66365.0,66364.0,0.150613]
[1722383234907,0.91671657,66365.0,66364.0,0.150613]
[1722383235108,1.06908976,66365.0,66364.0,0.150613]
[1722383235536,1.06908976,66365.0,66364.0,0.069913]
[1722383235537,0.91671657,66365.0,66364.0,0.069913]
[1722383235732,0.91615037,66365.0,66364.0,0.069913]
[1722383236176,1.00370992,66365.0,66364.0,0.066913]
[1722383236373,1.00470992,66365.0,66364.0,0.066913]
[1722383237005,1.00470992,66365.0,66364.0,0.067913]
[1722383238073,0.91343314,66365.0,66364.0,0.150513]
[1722383239041,0.82587359,66365.0,66364.0,0.150513]
[1722383239247,0.86033707,66365.0,66364.0,0.250513]
[1722383239451,0.91360765,66365.0,66364.0,0.250513]
[1722383242365,0.91344029,66365.0,66364.0,0.250513]
[1722383243008,0.91144029,66365.0,66364.0,0.250513]
[1722383243449,0.91344029,66365.0,66364.0,0.250513]
[1722383243663,1.34501492,66365.0,66364.0,0.167913]
[1722383243886,1.34501492,66365.0,66364.0,0.101913]
[1722383244563,1.20426072,66365.0,66364.0,0.101913]
[1722383244718,1.34457921,66365.0,66364.0,0.101913]
[1722383245121,1.20426072,66365.0,66364.0,0.101913]
[1722383245467,1.3445703,66365.0,66364.0,0.101913]
[1722383246196,2.0393963,66365.0,66364.0,0.101913]
[1722383246348,2.1493963,66365.0,66364.0,0.101913]
[1722383247118,2.1483963,66365.0,66364.0,0.101913]
[1722383247312,2.1553963,66365.0,66364.0,0.102913]
[1722383247636,2.15570382,66365.0,66364.0,0.102913]
[1722383248073,1.93084082,66365.0,66364.0,0.102913]
[1722383248475,1.93084082,66365.0,66364.0,0.101913]
[1722383248698,1.93284082,66365.0,66364.0,0.101913]
[1722383248905,1.94084082,66365.0,66364.0,0.102913]
[1722383249478,1.94974622,66365.0,66364.0,0.102913]
[1722383249689,1.95974622,66365.0,66364.0,0.102913]
[1722383250995,1.95992123,66365.0,66364.0,0.102913]
[1722383251382,1.94992123,66365.0,66364.0,0.102913]
[1722383251629,1.93642123,66365.0,66364.0,0.102913]
[1722383252859,2.15833036,66365.0,66364.0,0.102913]
[1722383254238,1.93660014,66365.0,66364.0,0.102913]
[1722383257538,1.80638851,66365.0,66364.0,0.102913]
[1722383258207,1.80658624,66365.0,66364.0,0.102913]
[1722383258421,1.72798624,66365.0,66364.0,0.102913]
[1722383259752,1.72881013,66365.0,66364.0,0.102913]
[1722383260512,1.72681013,66365.0,66364.0,0.102913]
[1722383260738,1.64064683,66365.0,66364.0,0.102913]
[1722383261079,1.72881251,66365.0,66364.0,0.164213]
[1722383261238,1.95104722,66365.0,66364.0,0.164213]
[1722383261436,2.01842999,66365.0,66364.0,0.164213]
[1722383261607,1.79619528,66365.0,66364.0,0.164213]
[1722383264066,1.65420026,66365.0,66364.0,0.164213]
[1722383264303,1.79618414,66365.0,66364.0,0.164213]
[1722383267625,1.7962901,66365.0,66364.0,0.164213]
[1722383271143,1.79598007,66365.0,66364.0,0.164213]
[1722383271504,1.65420026,66365.0,66364.0,0.164213]
[1722383271708,1.79598007,66365.0,66364.0,0.164213]
[1722383273258,1.79589043,66365.0,66364.0,0.164213]
[1722383273865,1.72850766,66365.0,66364.0,0.164213]
[1722383274068,1.72650766,66365.0,66364.0,0.164213]
[1722383274235,1.19895449,66365.0,66364.0,0.243213]
[1722383274439,1.56277052,66365.0,66364.0,0.243213]
[1722383274736,1.56276853,66365.0,66364.0,0.243213]
[1722383275342,1.34054322,66365.0,66364.0,0.243213]
[1722383275895,1.48937244,66365.0,66364.0,0.243213]
[1722383277711,1.34778371,66365.0,66364.0,0.243213]
[1722383278002,1.48972935,66365.0,66364.0,0.243213]
[1722383280775,1.4016432,66365.0,66364.0,0.243213]
[1722383280914,1.48983535,66365.0,66364.0,0.243213]
[1722383283200,1.34100613,66365.0,66364.0,0.243213]
[1722383283640,1.19895449,66365.0,66364.0,0.243213]
[1722383283839,0.18764245,66365.0,66364.0,0.243213]
[1722383284043,0.63078105,66365.0,66364.0,0.243213]
[1722383284829,0.62264971,66365.0,66364.0,0.242213]
[1722383285240,0.62364971,66365.0,66364.0,0.242213]
[1722383285810,0.61464971,66365.0,66364.0,0.241213]
[1722383286414,0.61464971,66365.0,66364.0,0.242213]
[1722383286841,0.61516848,66365.0,66364.0,0.242213]
[1722383287343,0.31380548,66365.0,66364.0,0.242213]
[1722383287549,0.16312448,66365.0,66364.0,0.242213]
[1722383288086,0.31380548,66365.0,66364.0,0.242213]
[1722383288738,0.61516848,66365.0,66364.0,0.242213]
[1722383288946,0.61088044,66365.0,66364.0,0.242213]
[1722383289713,0.30951744,66365.0,66364.0,0.242213]
[1722383290224,0.31004708,66365.0,66364.0,0.242213]
[1722383291089,0.61141008,66365.0,66364.0,0.242213]
[1722383291445,0.15936608,66365.0,66364.0,0.242213]
[1722383291651,0.07004248,66365.0,66364.0,0.392897]
[1722383292040,0.22072348,66365.0,66364.0,0.242213]
[1722383292675,0.21972348,66365.0,66364.0,0.241213]
[1722383292882,0.21972348,66365.0,66364.0,0.242213]
[1722383293079,0.21972348,66365.0,66364.0,0.246213]
[1722383293408,0.16467205,66365.0,66364.0,0.246213]
[1722383293622,0.21945136,66365.0,66364.0,0.246213]
[1722383293819,0.16467205,66365.0,66364.0,0.246213]
[1722383294018,0.21945157,66365.0,66364.0,0.246213]
[1722383294632,0.06877057,66365.0,66364.0,0.246213]
[1722383294834,0.21945157,66365.0,66364.0,0.246213]
[1722383295325,0.06877057,66365.0,66364.0,0.246213]
[1722383295529,0.06876481,66365.0,66364.0,0.246213]
[1722383296491,0.06876481,66365.0,66364.0,0.396897]
[1722383296734,0.06889078,66365.0,66364.0,0.246213]
[1722383297612,0.06889078,66365.0,66364.0,0.396897]
[1722383297753,0.22115569,66365.0,66364.0,0.396897]
[1722383297952,0.21915569,66365.0,66364.0,0.396897]
[1722383298175,0.06689078,66365.0,66364.0,0.999633]
[1722383298755,0.301324,66374.0,66368.0,0.150673]
[1722383298756,0.13535777,66371.0,66368.0,0.150673]
[1722383298953,0.13535777,66371.0,66369.0,0.150672]
[1722383299152,0.13535777,66371.0,66370.0,0.1442]
[1722383299598,0.13535777,66371.0,66370.0,0.1432]
[1722383300003,0.28600016,66372.0,66370.0,0.061]
[1722383300930,0.28600016,66372.0,66370.0,0.068]
[1722383301232,0.150668,66371.0,66370.0,0.068]
[1722383302039,0.452004,66371.0,66370.0,0.063]
[1722383302253,0.452004,66371.0,66370.0,0.064]
[1722383302452,0.58733816,66371.0,66370.0,0.064]
[1722383302577,0.58733816,66371.0,66370.0,0.1392]
[1722383302781,0.58733816,66371.0,66370.0,0.1432]
[1722383302983,0.58733816,66371.0,66370.0,0.1422]
[1722383303183,0.58733816,66371.0,66370.0,0.1382]
[1722383303434,0.453004,66371.0,66370.0,0.1382]
[1722383304077,0.453004,66371.0,66370.0,0.1392]
[1722383305518,0.001,66371.0,66370.0,0.28987]